lending/lending_fUSD_20260310
["ID","MTS","AMOUNT","RATE_DAILY","PERIOD"]
[408138100,1773166232210,-200.0,0.00015137,2]
[408138101,1773166232219,-619.86,0.00015146,2]
[408138103,1773166232229,-3240.0,0.00015363,2]
[408138104,1773166232239,-193.220251,0.00015374,7]
[408138105,1773166232249,-166.66,0.00015591,2]
[408138107,1773166232259,-367.41623883,0.000156,2]
[408138109,1773166232268,-201.12841321,0.000156,2]
[408138110,1773166232278,-500.0,0.00015673,2]
[408138112,1773166232288,-163.96545935,0.00015673,2]
[408138114,1773166232297,-500.31767514,0.00015673,2]
[408138115,1773166232307,-500.0,0.00015673,2]
[408138116,1773166232317,-500.0,0.00015673,2]
[408138117,1773166232327,-500.0,0.00015673,2]
[408138119,1773166232336,-598.87135753,0.00015674,2]
[408138121,1773166232346,-114895.52445578,0.00015684,2]
[408138123,1773166232358,-43992.54409721,0.00015684,2]
[408138125,1773166232370,-2046.73597902,0.00015684,2]
[408138131,1773166238094,-2339065.19546799,0.00015684,2]
[408138132,1773166238104,-479.54289435,0.000157,3]
[408138133,1773166238114,-473.38821206,0.000157,3]
[408138134,1773166238124,-600.0,0.000157,5]
[408138135,1773166238134,-217.0,0.00015719,2]
[408138136,1773166238143,-230.0,0.0001574,2]
[408138137,1773166238153,-2376.295,0.00015783,2]
[408138138,1773166238162,-176.81476457,0.00015783,2]
[408138139,1773166238172,-2218.5857,0.00015783,2]
[408138140,1773166238183,-735.9009,0.00015783,2]
[408138141,1773166238193,-153.15462612,0.00015784,2]
[408138142,1773166238202,-14321.21069539,0.00015784,2]
[408138143,1773166238211,-10526.95494753,0.00015784,2]
[408138144,1773166238222,-2500.0,0.00015784,2]
[408138145,1773166238231,-1200.0,0.000158,5]
[408138146,1773166238241,-299.59705891,0.000158,2]
[408138147,1773166238250,-275.9,0.00015863,2]
[408138148,1773166238260,-500.0,0.00015873,2]
[408138149,1773166238269,-500.34430685,0.00015873,2]
[408138150,1773166238279,-202.88923796,0.00015873,2]
[408138151,1773166238288,-627.75566029,0.00015873,2]
[408138152,1773166238298,-500.0,0.00015873,2]
[408138153,1773166238307,-500.0,0.00015873,2]
[408138154,1773166238317,-500.37983606,0.00015873,2]
[408138155,1773166238327,-500.0,0.00015873,2]
[408138156,1773166238336,-500.0,0.00015873,2]
[408138157,1773166238345,-500.0,0.00015873,2]
[408138158,1773166238356,-500.0,0.00015873,2]
[408138159,1773166238365,-500.0,0.00015873,2]
[408138160,1773166238374,-500.0,0.00015873,2]
[408138161,1773166238384,-500.0,0.00015873,2]
[408138162,1773166238394,-456.67098084,0.00015873,2]
[408138163,1773166238403,-500.0,0.00015873,2]
[408138164,1773166238412,-502.25687536,0.00015873,2]
[408138165,1773166238421,-500.0,0.00015873,2]
[408138166,1773166238430,-500.0,0.00015873,2]
[408138167,1773166238440,-500.0,0.00015873,2]
[408138169,1773166238449,-151.0,0.00015875,2]
[408138171,1773166238458,-151.0,0.00015875,2]
[408138173,1773166238468,-151.0,0.00015875,2]
[408138175,1773166238477,-151.0,0.00015875,2]
[408138177,1773166238487,-200.0,0.00015875,2]
[408138180,1773166238497,-151.0,0.00015875,2]
[408138182,1773166238506,-151.0,0.00015875,2]
[408138184,1773166238517,-151.0,0.00015875,2]
[408138186,1773166238527,-151.0,0.00015875,2]
[408138188,1773166238536,-151.0,0.00015875,2]
[408138190,1773166238545,-151.0,0.00015875,2]
[408138192,1773166238558,-151.0,0.00015875,2]
[408138194,1773166238567,-151.0,0.00015875,2]
[408138196,1773166238576,-151.0,0.00015875,2]
[408138197,1773166238586,-151.0,0.00015875,2]
[408138198,1773166238598,-151.0,0.00015875,2]
[408138199,1773166238607,-151.0,0.00015875,2]
[408138200,1773166238616,-151.0,0.00015875,2]
[408138201,1773166238628,-151.0,0.00015875,2]
[408138202,1773166238637,-151.0,0.00015875,2]
[408138203,1773166238647,-151.0,0.00015875,2]
[408138204,1773166238657,-151.0,0.00015875,2]
[408138205,1773166238666,-151.0,0.00015875,2]
[408138206,1773166238675,-151.0,0.00015875,2]
[408138207,1773166238685,-151.0,0.00015875,2]
[408138208,1773166238694,-151.0,0.00015875,2]
[408138209,1773166238704,-154.22309039,0.00015875,2]
[408138210,1773166238713,-151.0,0.00015881,2]
[408138211,1773166238723,-1019.34087466,0.00015883,5]
[408138212,1773166238732,-500.0,0.00015883,2]
[408138213,1773166238742,-500.0,0.00015883,2]
[408138214,1773166238752,-500.0,0.00015883,2]
[408138215,1773166238761,-807.20253901,0.00015883,5]
[408138216,1773166238770,-500.0,0.00015883,2]
[408138217,1773166238780,-500.0,0.00015883,2]
[408138218,1773166238789,-504.66308381,0.00015883,2]
[408138219,1773166238799,-500.0,0.00015883,2]
[408138220,1773166238808,-500.0,0.00015883,2]
[408138221,1773166238818,-500.0,0.00015883,2]
[408138222,1773166238828,-630.81055911,0.00015883,2]
[408138223,1773166238838,-500.0,0.00015883,2]
[408138224,1773166238847,-500.0,0.00015883,2]
[408138225,1773166238857,-500.0,0.00015883,2]
[408138226,1773166238866,-762.95,0.00015883,2]
[408138227,1773166238875,-762.95,0.00015883,2]
[408138228,1773166238884,-762.95,0.00015883,2]
[408138229,1773166238893,-762.95,0.00015883,2]
[408138230,1773166238902,-762.95,0.00015883,2]
[408138231,1773166238911,-762.95,0.00015883,2]
[408138232,1773166238922,-762.95,0.00015883,2]
[408138233,1773166238932,-762.95,0.00015883,2]
[408138234,1773166238941,-504.81219499,0.00015883,5]
[408138235,1773166238952,-1000.0,0.00015884,2]
[408138236,1773166238961,-10364.3237,0.00015884,2]
[408138237,1773166238970,-330793.6248,0.00015884,2]
[408138238,1773166238980,-1800.0,0.000159,5]
[408138239,1773166238990,-619.86,0.00015903,2]
[408138240,1773166239000,-500.0,0.00015983,2]
[408138241,1773166239009,-500.0,0.00015983,2]
[408138242,1773166239019,-500.0,0.00015983,2]
[408138243,1773166239029,-500.0,0.00015983,2]
[408138244,1773166239038,-500.0,0.00015983,2]
[408138245,1773166239048,-500.0,0.00015983,2]
[408138246,1773166239058,-500.0,0.00015983,2]
[408138247,1773166239067,-500.0,0.00015983,2]
[408138248,1773166239077,-500.0,0.00015983,2]
[408138249,1773166239086,-500.0,0.00015983,2]
[408138250,1773166239095,-500.0,0.00015983,2]
[408138251,1773166239104,-500.0,0.00015983,2]
[408138252,1773166239114,-500.0,0.00015983,2]
[408138253,1773166239124,-500.0,0.00015983,2]
[408138254,1773166239133,-166.66,0.00016105,2]
[408138255,1773166239142,-500.0,0.00016183,2]
[408138256,1773166239152,-500.0,0.00016183,2]
[408138257,1773166239161,-500.0,0.00016183,2]
[408138258,1773166239171,-500.0,0.00016183,2]
[408138259,1773166239180,-500.0,0.00016183,2]
[408138260,1773166239189,-500.0,0.00016183,2]
[408138261,1773166239198,-500.0,0.00016183,2]
[408138262,1773166239208,-500.0,0.00016183,2]
[408138263,1773166239564,-500.0,0.00016183,2]
[408138264,1773166239574,-500.0,0.00016183,2]
[408138265,1773166239583,-500.0,0.00016183,2]
[408138266,1773166239594,-500.0,0.00016183,2]
[408138267,1773166239603,-500.0,0.00016183,2]
[408138268,1773166239612,-500.0,0.00016183,2]
[408138269,1773166239622,-362.30142625,0.00016183,2]
[408138270,1773166239632,-500.0,0.00016183,2]
[408138271,1773166239642,-500.0,0.00016183,2]
[408138272,1773166239651,-500.0,0.00016183,2]
[408138273,1773166239661,-500.0,0.00016183,2]
[408138274,1773166239670,-500.0,0.00016183,2]
[408138275,1773166239680,-522.2,0.00016183,2]
[408138276,1773166239690,-500.0,0.00016183,2]
[408138277,1773166239700,-5000.00760076,0.000162,5]
[408138278,1773166239710,-1000.0,0.00016221,2]
[408138279,1773166239720,-14321.21069535,0.00016241,2]
[408138280,1773166239730,-221.36297144,0.00016242,2]
[408138281,1773166239739,-210.0,0.00016256,2]
[408138282,1773166239748,-492.0,0.00016299,2]
[408138283,1773166239758,-179.0,0.00016337,2]
[408138284,1773166239769,-4676.8202,0.00016372,2]
[408138285,1773166239778,-1000.0,0.00016421,2]
[408138286,1773166239788,-500.0,0.00016421,2]
[408138287,1773166239797,-945.92650306,0.00016421,2]
[408138288,1773166239807,-1000.0,0.00016421,2]
[408138289,1773166239816,-1000.0,0.00016421,2]
[408138290,1773166239825,-1000.0,0.00016421,2]
[408138291,1773166239835,-1000.0,0.00016421,2]
[408138292,1773166239845,-1000.0,0.00016421,2]
[408138293,1773166239854,-1000.0,0.00016421,2]
[408138294,1773166239863,-1000.0,0.00016421,2]
[408138295,1773166239873,-1000.0,0.00016421,2]
[408138296,1773166239882,-551.92,0.00016438,2]
[408138297,1773166239892,-551.92,0.00016438,2]
[408138298,1773166239901,-551.92,0.00016438,2]
[408138299,1773166239910,-551.92,0.00016438,2]
[408138300,1773166239920,-551.92,0.00016438,2]
[408138301,1773166239930,-551.92,0.00016438,2]
[408138302,1773166239940,-551.92,0.00016438,2]
[408138303,1773166239949,-262.0,0.00016476,2]
[408138304,1773166239958,-395.0,0.00016514,2]
[408138305,1773166239969,-166.66,0.0001662,2]
[408138306,1773166239978,-619.86,0.00016661,2]
[408138307,1773166239987,-14321.21069535,0.00016699,2]
[408138308,1773166239996,-337.0,0.000167,2]
[408138309,1773166240005,-166.34,0.00016712,2]
[408138310,1773166240014,-500.0,0.00016768,2]
[408138311,1773166240023,-2400.0,0.000169,6]
[408138312,1773166240032,-2638.57053932,0.000169,2]
[408138313,1773166240041,-4676.8202,0.0001696,2]
[408138314,1773166240051,-1137.10281941,0.00016968,2]
[408138315,1773166240061,-1500.0,0.00016968,2]
[408138316,1773166240070,-1500.0,0.00016968,2]
[408138317,1773166240078,-1500.0,0.00016968,2]
[408138318,1773166240087,-1500.0,0.00016968,2]
[408138319,1773166240096,-1500.0,0.00016968,2]
[408138320,1773166240105,-500.0,0.00016968,2]
[408138321,1773166240114,-598.87135753,0.0001699,2]
[408138322,1773166240123,-762.95,0.00016999,2]
[408138323,1773166240133,-762.95,0.00016999,2]
[408138324,1773166240142,-762.95,0.00016999,2]
[408138325,1773166240151,-642457.60955556,0.00017,2]
[408138326,1773166240162,-510.0,0.00017,2]
[408138327,1773166240170,-2000.0,0.00017029,2]
[408138328,1773166240179,-54243.60633042,0.000171,2]
[408138329,1773166240188,-10960.6896483,0.0001711,2]
[408138330,1773166240197,-166.66,0.00017135,2]
[408138331,1773166240206,-14321.21069535,0.00017156,2]
[408138332,1773166240215,-619.86,0.00017418,2]
[408138333,1773166240224,-2000.0,0.00017516,2]
[408138334,1773166240233,-2000.0,0.00017516,2]
[408138335,1773166240241,-2000.0,0.00017516,2]
[408138336,1773166240251,-500.0,0.00017516,2]
[408138337,1773166240260,-4676.8202,0.00017548,2]
[408138338,1773166240269,-14321.21069535,0.00017613,2]
[408138339,1773166240278,-166.66,0.00017649,2]
[408138340,1773166240287,-701.33501871,0.000177,2]
[408138341,1773166240296,-762.95,0.00017727,2]
[408138342,1773166240306,-7995.06,0.00017728,2]
[408138343,1773166240315,-9999.99,0.00017728,2]
[408138344,1773166240324,-29506.61,0.00017728,2]
[408138345,1773166240334,-6272.28,0.00017728,2]
[408138346,1773166240342,-299.99,0.00017728,4]
[408138347,1773166240351,-9999.99,0.00017728,2]
[408138348,1773166240362,-999.99,0.00017728,2]
[408138349,1773166240371,-3198.48,0.00017728,2]
[408138350,1773166240381,-9999.99,0.00017728,2]
[408138351,1773166240390,-9999.99,0.00017728,2]
[408138352,1773166240399,-3428.03,0.00017728,2]
[408138353,1773166240408,-21207.14,0.00017728,2]
[408138354,1773166240417,-150.99,0.00017728,2]
[408138355,1773166240427,-6594.12,0.00017728,2]
[408138356,1773166240437,-17930.59,0.00017728,2]
[408138357,1773166240446,-367.41623881,0.0001775,2]
[408138358,1773166240455,-309.41665429,0.0001776,2]
[408138359,1773166240464,-336.48617471,0.0001776,2]
[408138360,1773166240473,-500.0,0.0001776,2]
[408138361,1773166240482,-500.0,0.0001776,2]
[408138362,1773166240491,-500.0,0.0001776,2]
[408138363,1773166240500,-500.0,0.0001776,2]
[408138364,1773166240509,-525.62729725,0.0001776,2]
[408138365,1773166240518,-500.0,0.0001776,2]
[408138366,1773166240528,-500.24925891,0.0001776,2]
[408138367,1773166240537,-500.0,0.000178,2]
[408138368,1773166240546,-164.68602851,0.000178,2]
[408138369,1773166240558,-210.19245283,0.000178,2]
[408138370,1773166240567,-500.0,0.000178,2]
[408138371,1773166240576,-500.0,0.000178,2]
[408138372,1773166240585,-500.0,0.000178,2]
[408138373,1773166240595,-500.0,0.000178,2]
[408138374,1773166240605,-161.50637135,0.000178,2]
[408138375,1773166240615,-299.5970589,0.0001785,2]
[408138376,1773166240623,-1007.12616149,0.0001786,2]
[408138377,1773166240633,-1228.83497507,0.0001789,2]
[408138378,1773166240642,-1076.79989794,0.0001789,2]
[408138379,1773166240651,-4749.22872573,0.0001789,2]
[408138380,1773166240660,-515.7545181,0.000179,2]
[408138381,1773166240669,-500.0,0.00017987,2]
[408138382,1773166240679,-7201.42441341,0.0001799,2]
[408138383,1773166240688,-300.0,0.00017999,2]
[408138384,1773166240697,-762.95,0.00017999,2]
[408138385,1773166240706,-5004.90001375,0.00018,5]
[408138386,1773166240715,-65594.12178865,0.00018,2]
[408138387,1773166240724,-1033.7630252,0.00018,2]
[408138388,1773166240734,-308.80438942,0.00018,2]
[408138389,1773166240743,-1003.00365502,0.00018,2]
[408138390,1773166240752,-283.18830784,0.00018064,2]
[408138391,1773166240762,-1000.0,0.00018064,2]
[408138392,1773166240771,-500.0,0.00018067,2]
[408138393,1773166240780,-168.09945814,0.00018067,2]
[408138395,1773166240789,-500.17118036,0.00018067,2]
[408138396,1773166240798,-500.0,0.00018067,2]
[408138398,1773166240808,-500.0,0.00018067,2]
[408138399,1773166240817,-516.85988717,0.00018067,2]
[408138400,1773166240826,-500.0,0.00018067,2]
[408138401,1773166240835,-166.21138236,0.00018067,2]
[408138402,1773166240844,-14321.21069535,0.00018071,2]
[408138403,1773166240854,-424.139,0.00018085,2]
[408138404,1773166240863,-500.0,0.00018085,2]
[408138405,1773166240873,-1500.0,0.00018085,2]
[408138406,1773166240883,-1500.0,0.00018085,2]
[408138407,1773166240892,-1500.0,0.00018085,2]
[408138408,1773166240901,-1500.0,0.00018085,2]
[408138409,1773166240911,-1500.0,0.00018085,2]
[408138410,1773166240920,-1500.0,0.00018085,2]
[408138411,1773166240930,-1500.0,0.00018085,2]
[408138412,1773166240938,-1500.0,0.00018085,2]
[408138413,1773166240948,-1500.0,0.00018085,2]
[408138414,1773166240957,-1500.0,0.00018085,2]
[408138415,1773166240966,-1500.0,0.00018085,2]
[408138416,1773166240975,-1500.0,0.00018085,2]
[408138417,1773166240984,-3000.0,0.00018085,2]
[408138418,1773166240993,-3000.0,0.00018085,2]
[408138420,1773166241003,-3000.0,0.00018085,2]
[408138421,1773166241012,-3000.0,0.00018085,2]
[408138422,1773166241021,-3000.0,0.00018085,2]
[408138423,1773166241030,-200.0,0.00018085,2]
[408138425,1773166241039,-3000.0,0.00018085,2]
[408138426,1773166241048,-3000.0,0.00018085,2]
[408138427,1773166241058,-3000.0,0.00018085,2]
[408138428,1773166241067,-3000.0,0.00018085,2]
[408138429,1773166241075,-151.0,0.00018085,2]
[408138430,1773166241085,-174.61919142,0.00018085,2]
[408138431,1773166241094,-3000.0,0.00018085,2]
[408138432,1773166241103,-3000.0,0.00018085,2]
[408138433,1773166241113,-3000.0,0.00018085,2]
[408138434,1773166241122,-500.0,0.00018085,2]
[408138435,1773166241132,-1500.0,0.00018085,2]
[408138436,1773166241141,-1500.0,0.00018085,2]
[408138437,1773166241150,-1500.0,0.00018085,2]
[408138438,1773166241160,-1000.0,0.00018085,2]
[408138439,1773166241169,-262.90206542,0.00018085,2]
[408138440,1773166241179,-4676.8202,0.00018136,2]
[408138441,1773166241190,-500.0,0.0001814,2]
[408138442,1773166241199,-151.0,0.0001814,2]
[408138443,1773166241208,-166.66,0.00018164,2]
[408138444,1773166241217,-619.86,0.00018175,2]
[408138445,1773166241226,-1364.0,0.00018187,2]
[408138446,1773166241235,-500.0,0.00018195,2]
[408138447,1773166241245,-151.0,0.00018195,2]
[408138448,1773166241254,-500.0,0.00018237,2]
[408138449,1773166241263,-500.0,0.00018237,2]
[408138450,1773166241272,-438.17886325,0.00018237,2]
[408138451,1773166241281,-158.89335882,0.00018237,2]
[408138452,1773166241290,-500.0,0.00018237,2]
[408138453,1773166241299,-500.0,0.00018237,2]
[408138454,1773166241309,-500.0,0.00018237,2]
[408138455,1773166241320,-500.0,0.00018237,2]
[408138456,1773166241330,-513.88974837,0.00018237,2]
[408138457,1773166241340,-500.0,0.00018237,2]
[408138458,1773166241350,-500.0,0.00018237,2]
[408138459,1773166241360,-210.17759829,0.00018237,2]
[408138460,1773166241369,-500.0,0.00018237,2]
[408138461,1773166241378,-162.45092924,0.00018237,2]
[408138462,1773166241388,-500.0,0.00018237,2]
[408138463,1773166241397,-162.16516283,0.00018237,2]
[408138464,1773166241407,-500.0,0.00018237,2]
[408138465,1773166241416,-500.0,0.00018237,2]
[408138466,1773166241425,-500.0,0.00018237,2]
[408138467,1773166241434,-500.0,0.00018237,2]
[408138468,1773166241443,-555.93722716,0.00018237,2]
[408138469,1773166241452,-564.98385943,0.00018237,2]
[408138470,1773166241461,-500.0,0.00018237,2]
[408138471,1773166241470,-311.58893439,0.00018237,2]
[408138472,1773166241481,-500.0,0.00018237,2]
[408138473,1773166241491,-338.5975808,0.00018237,2]
[408138474,1773166241501,-500.19685753,0.00018237,2]
[408138475,1773166241511,-500.0,0.00018237,2]
[408138476,1773166241520,-500.0,0.00018237,2]
[408138477,1773166241529,-500.19933179,0.00018237,2]
[408138478,1773166241538,-500.0,0.00018237,2]
[408138479,1773166241550,-500.0,0.0001825,2]
[408138480,1773166241559,-151.0,0.0001825,2]
[408138481,1773166241568,-500.0,0.00018264,2]
[408138482,1773166241577,-500.0,0.00018305,2]
[408138483,1773166241587,-151.0,0.00018305,2]
[408138484,1773166241598,-723.08526517,0.00018308,2]
[408138485,1773166241607,-1000.0,0.00018308,2]
[408138486,1773166241617,-1000.0,0.00018308,2]
[408138487,1773166241627,-1000.0,0.00018308,2]
[408138488,1773166241637,-1000.0,0.00018308,2]
[408138489,1773166241647,-302.15345577,0.00018348,2]
[408138490,1773166241657,-1000.0,0.00018348,2]
[408138491,1773166241666,-1000.0,0.00018348,2]
[408138492,1773166241675,-1000.0,0.00018348,2]
[408138493,1773166241684,-1000.0,0.00018348,2]
[408138494,1773166241693,-500.0,0.0001836,2]
[408138495,1773166241702,-152.13617837,0.0001836,2]
[408138496,1773166241711,-2638.57053931,0.000184,2]
[408138497,1773166241720,-500.0,0.00018415,2]
[408138498,1773166241730,-241.525314,0.00018449,7]
[408138499,1773166241739,-500.0,0.0001847,2]
[408138500,1773166241749,-500.0,0.00018525,2]
[408138501,1773166241758,-14321.21069535,0.00018528,2]
[408138502,1773166241767,-922.0,0.00018531,2]
[408138503,1773166241776,-1213.0,0.00018531,2]
[408138504,1773166241786,-2461.0,0.00018531,2]
[408138505,1773166241795,-596.36617318,0.00018535,2]
[408138506,1773166241804,-510.0,0.00018575,3]
[408138507,1773166241813,-500.0,0.0001858,2]
[408138508,1773166241822,-1000.0,0.00018615,2]
[408138509,1773166241832,-1000.0,0.00018615,2]
[408138510,1773166241840,-1000.0,0.00018615,2]
[408138511,1773166241849,-575.55800162,0.00018615,2]
[408138512,1773166241859,-500.0,0.00018635,2]
[408138513,1773166241868,-500.0,0.00018653,2]
[408138514,1773166241877,-500.0,0.0001869,2]
[408138515,1773166241887,-4676.8202,0.00018724,2]
[408138516,1773166241897,-1000.0,0.00018785,2]
[408138517,1773166241906,-1000.0,0.00018785,2]
[408138518,1773166241915,-1000.0,0.00018785,2]
[408138519,1773166241924,-1000.0,0.00018785,2]
[408138520,1773166241933,-1000.0,0.00018785,2]
[408138521,1773166241942,-1000.92260886,0.00018785,2]
[408138522,1773166241951,-1000.0,0.00018785,2]
[408138523,1773166241960,-1000.0,0.00018785,2]
[408138524,1773166241970,-1000.0,0.00018785,2]
[408138525,1773166241979,-1000.0,0.00018785,2]
[408138526,1773166241988,-1000.0,0.00018785,2]
[408138527,1773166241997,-1000.0,0.00018785,2]
[408138528,1773166242006,-1000.0,0.00018785,2]
[408138529,1773166242016,-558.85528432,0.00018785,2]
[408138530,1773166242025,-605.45252019,0.00018785,2]
[408138531,1773166242034,-1000.0,0.00018785,2]
[408138532,1773166242044,-1000.0,0.00018785,2]
[408138533,1773166242053,-1000.0,0.00018785,2]
[408138534,1773166242062,-1000.0,0.00018785,2]
[408138535,1773166242074,-1545.31641049,0.00018856,2]
[408138536,1773166242083,-1500.0,0.00018856,2]
[408138537,1773166242092,-1500.0,0.00018856,2]
[408138538,1773166242102,-1500.0,0.00018856,2]
[408138539,1773166242111,-1500.0,0.00018896,2]
[408138540,1773166242120,-1003.33475526,0.00018896,2]
[408138541,1773166242129,-1500.0,0.00018896,2]
[408138542,1773166242138,-1500.0,0.00018896,2]
[408138543,1773166242148,-500.0,0.00018902,2]
[408138544,1773166242157,-551.92,0.00018902,2]
[408138545,1773166242166,-500.0,0.00018902,2]
[408138546,1773166242176,-2000.0,0.00018921,2]
[408138547,1773166242185,-14321.21069535,0.00018985,2]
[408138548,1773166242194,-4190.0,0.00019,2]
[408138549,1773166242203,-21925.96350167,0.00019,2]
[408138550,1773166242212,-493.69575205,0.00019,2]
[408138551,1773166242221,-150.0,0.00019015,2]
[408138552,1773166242230,-150.0,0.00019015,2]
[408138553,1773166242239,-1042.0,0.00019015,2]
[408138554,1773166242249,-619.0,0.00019015,2]
[408138555,1773166242258,-151.0,0.00019015,2]
[408138556,1773166242267,-151.0,0.00019015,2]
[408138557,1773166242276,-151.0,0.00019015,2]
[408138558,1773166242286,-151.0,0.00019015,2]
[408138559,1773166242295,-5000.0,0.00019015,2]
[408138560,1773166242305,-5000.0,0.00019015,2]
[408138561,1773166242314,-5000.0,0.00019015,2]
[408138562,1773166242323,-5000.0,0.00019015,2]
[408138563,1773166242333,-5000.0,0.00019015,2]
[408138564,1773166242342,-5000.0,0.00019015,2]
[408138565,1773166242351,-5000.0,0.00019015,2]
[408138566,1773166242361,-3534.676574,0.00019015,2]
[408138567,1773166242371,-151.0,0.00019015,2]
[408138568,1773166242380,-197.527773,0.00019015,2]
[408138569,1773166242390,-151.0,0.00019015,2]
[408138570,1773166242399,-270.957245,0.00019015,2]
[408138571,1773166242409,-181.81,0.00019055,2]
[408138572,1773166242419,-1500.0,0.00019163,2]
[408138573,1773166242428,-1500.0,0.00019163,2]
[408138574,1773166242438,-1500.0,0.00019163,2]
[408138575,1773166242447,-151.0,0.00019166,2]
[408138576,1773166242456,-151.0,0.00019166,2]
[408138577,1773166242466,-151.0,0.00019166,2]
[408138578,1773166242476,-196.37096,0.00019166,2]
[408138579,1773166242485,-151.0,0.00019178,2]
[408138580,1773166242494,-168.456418,0.00019178,2]
[408138581,1773166242504,-239.902116,0.00019178,2]
[408138582,1773166242514,-239.902116,0.00019178,2]
[408138583,1773166242523,-239.902116,0.00019178,2]
[408138584,1773166242533,-239.902116,0.00019178,2]
[408138585,1773166242542,-151.0,0.00019178,2]
[408138586,1773166242554,-188.673291,0.00019178,2]
[408138587,1773166242563,-179.928038,0.00019178,2]
[408138588,1773166242572,-179.928038,0.00019178,2]
[408138589,1773166242582,-179.928038,0.00019178,2]
[408138590,1773166242592,-179.928038,0.00019178,2]
[408138591,1773166242602,-671.894254,0.00019178,2]
[408138592,1773166242612,-671.894254,0.00019178,2]
[408138593,1773166242621,-671.894254,0.00019178,2]
[408138594,1773166242631,-151.0,0.00019178,2]
[408138595,1773166242640,-671.894254,0.00019178,2]
[408138596,1773166242649,-151.0,0.00019178,2]
[408138597,1773166242658,-151.0,0.00019178,2]
[408138598,1773166242667,-151.0,0.00019178,2]
[408138599,1773166242676,-151.0,0.00019178,2]
[408138600,1773166242686,-151.0,0.00019178,2]
[408138601,1773166242695,-151.0,0.00019178,2]
[408138602,1773166242705,-151.0,0.00019178,2]
[408138603,1773166242715,-470.98832,0.00019178,2]
[408138604,1773166242724,-470.98832,0.00019178,2]
[408138605,1773166242734,-470.98832,0.00019178,2]
[408138606,1773166242743,-470.98832,0.00019178,2]
[408138607,1773166242752,-291.106941,0.00019178,2]
[408138608,1773166242761,-291.106941,0.00019178,2]
[408138609,1773166242771,-291.106941,0.00019178,2]
[408138610,1773166242780,-291.106941,0.00019178,2]
[408138611,1773166242790,-151.0,0.00019178,2]
[408138612,1773166242799,-199.540689,0.00019178,2]
[408138613,1773166242809,-151.0,0.00019178,2]
[408138614,1773166242818,-787.0,0.00019178,2]
[408138615,1773166242828,-178.02265107,0.00019178,2]
[408138616,1773166242837,-150.0,0.00019178,2]
[408138617,1773166242846,-150.0,0.00019178,2]
[408138618,1773166242855,-2000.0,0.000192,2]
[408138619,1773166242865,-500.0,0.00019233,7]
[408138620,1773166242874,-551.92,0.00019273,2]
[408138621,1773166242884,-1000.0,0.00019274,2]
[408138622,1773166242893,-3000.0,0.000193,7]
[408138623,1773166242902,-4676.8202,0.00019312,2]
[408138624,1773166242911,-1500.0,0.00019333,2]
[408138625,1773166242920,-1500.0,0.00019333,2]
[408138626,1773166242930,-1500.0,0.00019333,2]
[408138627,1773166242939,-1500.0,0.00019333,2]
[408138628,1773166242948,-1500.0,0.00019333,2]
[408138629,1773166242957,-1500.0,0.00019333,2]
[408138630,1773166242966,-1500.0,0.00019333,2]
[408138631,1773166242975,-1500.0,0.00019333,2]
[408138632,1773166242985,-1500.0,0.00019333,2]